[Event "Early Titled Tuesday Blitz | February 8 2022"]
[White "Flis, Pawel"]
[Black "Budrewicz, Krzysztof"]
[WhiteFideId "1112864"]
[BlackFideId "1127950"]
[WhiteElo "1735"]
[BlackElo "2248"]
[Result "0-1"]
[Round "01"]
[TimeControl "180+1"]
[Date "2022.02.08"]
[WhiteClock "0:00:20"]
[BlackClock "0:01:16"]

1. e4 {[%clk 0:02:54]}  g6 {[%clk 0:02:56]} 2. d4 {[%clk 0:02:53]}  Bg7 {[%clk 0:02:56]} 3. Nc3 {[%clk 0:02:53]}  c5 {[%clk 0:02:55]} 4. dxc5 {[%clk 0:02:50]}  Bxc3+ {[%clk 0:02:54]} 5. bxc3 {[%clk 0:02:49]}  Nc6 {[%clk 0:02:55]} 6. Nf3 {[%clk 0:02:48]}  Qa5 {[%clk 0:02:55]} 7. Bd2 {[%clk 0:02:02]}  Qxc5 {[%clk 0:02:51]} 8. Bd3 {[%clk 0:02:02]}  Nf6 {[%clk 0:02:49]} 9. O-O {[%clk 0:02:01]}  O-O {[%clk 0:02:49]} 10. Rb1 {[%clk 0:01:55]}  Qa5 {[%clk 0:02:36]} 11. Re1 {[%clk 0:01:41]}  d6 {[%clk 0:02:35]} 12. h3 {[%clk 0:01:39]}  Qc7 {[%clk 0:02:32]} 13. Nd4 {[%clk 0:01:34]}  a6 {[%clk 0:02:23]} 14. f4 {[%clk 0:01:30]}  Nxd4 {[%clk 0:02:06]} 15. cxd4 {[%clk 0:01:28]}  d5 {[%clk 0:02:06]} 16. e5 {[%clk 0:01:24]}  Ne4 {[%clk 0:02:06]} 17. Bxe4 {[%clk 0:01:04]}  dxe4 {[%clk 0:02:06]} 18. Rxe4 {[%clk 0:01:05]}  Bf5 {[%clk 0:02:04]} 19. Re2 {[%clk 0:01:03]}  Bxc2 {[%clk 0:01:58]} 20. Qc1 {[%clk 0:01:01]}  Rfc8 {[%clk 0:01:56]} 21. Be3 {[%clk 0:00:57]}  Bxb1 {[%clk 0:01:52]} 22. Qxb1 {[%clk 0:00:57]}  e6 {[%clk 0:01:49]} 23. Qe1 {[%clk 0:00:52]}  Qc4 {[%clk 0:01:45]} 24. Rd2 {[%clk 0:00:46]}  Qd5 {[%clk 0:01:43]} 25. Qh4 {[%clk 0:00:45]}  Rc1+ {[%clk 0:01:38]} 26. Kh2 {[%clk 0:00:44]}  Rc3 {[%clk 0:01:38]} 27. Bf2 {[%clk 0:00:38]}  Rac8 {[%clk 0:01:29]} 28. f5 {[%clk 0:00:35]}  exf5 {[%clk 0:01:26]} 29. Qf6 {[%clk 0:00:30]}  Qe4 {[%clk 0:01:18]} 30. d5 {[%clk 0:00:20]}  Qf4+ {[%clk 0:01:16]} 0-1


[Site "https://www.chess.com"]

[Event "Early Titled Tuesday Blitz | February 8 2022"]
[White "Fries-Nielsen, Jens Ove"]
[Black "Lopez Del Alamo, Antonio"]
[WhiteFideId "1400142"]
[BlackFideId "2227339"]
[WhiteElo "2597"]
[BlackElo "2082"]
[Result "1-0"]
[Round "01"]
[TimeControl "180+1"]
[Date "2022.02.08"]
[WhiteClock "0:01:38"]
[BlackClock "0:00:45"]

1. d4 {[%clk 0:02:56]}  Nf6 {[%clk 0:02:59]} 2. Nc3 {[%clk 0:02:55]}  d5 {[%clk 0:02:58]} 3. Bf4 {[%clk 0:02:55]}  e6 {[%clk 0:02:58]} 4. Nb5 {[%clk 0:02:53]}  Na6 {[%clk 0:02:57]} 5. e3 {[%clk 0:02:53]}  c6 {[%clk 0:02:56]} 6. Nc3 {[%clk 0:02:53]}  Nb8 {[%clk 0:02:55]} 7. a3 {[%clk 0:02:52]}  Bd6 {[%clk 0:02:53]} 8. Nf3 {[%clk 0:02:51]}  O-O {[%clk 0:02:50]} 9. Bd3 {[%clk 0:02:50]}  Qc7 {[%clk 0:02:43]} 10. Bg3 {[%clk 0:02:47]}  Nbd7 {[%clk 0:02:38]} 11. b4 {[%clk 0:02:46]}  e5 {[%clk 0:02:35]} 12. Be2 {[%clk 0:02:42]}  e4 {[%clk 0:02:27]} 13. Nd2 {[%clk 0:02:41]}  a5 {[%clk 0:02:26]} 14. b5 {[%clk 0:02:39]}  c5 {[%clk 0:02:23]} 15. Bxd6 {[%clk 0:02:30]}  Qxd6 {[%clk 0:02:23]} 16. dxc5 {[%clk 0:02:30]}  Qxc5 {[%clk 0:02:19]} 17. Na4 {[%clk 0:02:29]}  Qe7 {[%clk 0:02:13]} 18. c4 {[%clk 0:02:28]}  b6 {[%clk 0:02:03]} 19. cxd5 {[%clk 0:02:26]}  Nxd5 {[%clk 0:02:00]} 20. Nc4 {[%clk 0:02:26]}  Bb7 {[%clk 0:01:59]} 21. O-O {[%clk 0:02:25]}  Rad8 {[%clk 0:01:56]} 22. Qb3 {[%clk 0:02:20]}  Nc5 {[%clk 0:01:54]} 23. Nxc5 {[%clk 0:02:19]}  Qxc5 {[%clk 0:01:55]} 24. Rac1 {[%clk 0:02:19]}  Rc8 {[%clk 0:01:48]} 25. Qb2 {[%clk 0:02:15]}  Qe7 {[%clk 0:01:42]} 26. Rfd1 {[%clk 0:02:11]}  Rfd8 {[%clk 0:01:41]} 27. Rd4 {[%clk 0:02:11]}  f5 {[%clk 0:01:30]} 28. Rcd1 {[%clk 0:02:11]}  Rc5 {[%clk 0:01:26]} 29. Nxb6 {[%clk 0:02:08]}  Rd6 {[%clk 0:01:04]} 30. Na4 {[%clk 0:02:02]}  Rc8 {[%clk 0:01:00]} 31. Bc4 {[%clk 0:01:58]}  Rcd8 {[%clk 0:00:58]} 32. Nc3 {[%clk 0:01:53]}  Qe5 {[%clk 0:00:55]} 33. Qa2 {[%clk 0:01:47]}  Kh8 {[%clk 0:00:54]} 34. Bxd5 {[%clk 0:01:44]}  Bxd5 {[%clk 0:00:53]} 35. Nxd5 {[%clk 0:01:42]}  Rxd5 {[%clk 0:00:45]} 36. Rxd5 {[%clk 0:01:38]} 1-0


[Site "https://www.chess.com"]

[Event "Early Titled Tuesday Blitz | February 8 2022"]
[White "Golsta, Madara"]
[Black "Barp, Alberto"]
[WhiteFideId "11607386"]
[BlackFideId "872555"]
[WhiteElo "1997"]
[BlackElo "2229"]
[Result "0-1"]
[Round "01"]
[TimeControl "180+1"]
[Date "2022.02.08"]
[WhiteClock "0:00:02"]
[BlackClock "0:00:08"]

1. e4 {[%clk 0:03:00]}  c6 {[%clk 0:02:54]} 2. d4 {[%clk 0:02:59]}  d5 {[%clk 0:02:53]} 3. exd5 {[%clk 0:02:59]}  cxd5 {[%clk 0:02:52]} 4. c4 {[%clk 0:02:59]}  Nf6 {[%clk 0:02:52]} 5. Nc3 {[%clk 0:02:58]}  Nc6 {[%clk 0:02:49]} 6. Nf3 {[%clk 0:02:57]}  Bg4 {[%clk 0:02:41]} 7. Be3 {[%clk 0:02:56]}  e6 {[%clk 0:02:36]} 8. c5 {[%clk 0:02:55]}  Be7 {[%clk 0:02:24]} 9. h3 {[%clk 0:02:44]}  Bh5 {[%clk 0:02:23]} 10. g4 {[%clk 0:02:32]}  Bg6 {[%clk 0:02:22]} 11. Qb3 {[%clk 0:02:26]}  Qc8 {[%clk 0:02:10]} 12. Nh4 {[%clk 0:01:57]}  Be4 {[%clk 0:01:44]} 13. f3 {[%clk 0:01:47]}  Bg6 {[%clk 0:01:18]} 14. Be2 {[%clk 0:01:38]}  O-O {[%clk 0:01:11]} 15. Nxg6 {[%clk 0:01:38]}  hxg6 {[%clk 0:01:09]} 16. f4 {[%clk 0:01:34]}  Rd8 {[%clk 0:00:57]} 17. h4 {[%clk 0:01:18]}  Ne4 {[%clk 0:00:46]} 18. h5 {[%clk 0:01:06]}  gxh5 {[%clk 0:00:42]} 19. Rxh5 {[%clk 0:00:57]}  Nxc5 {[%clk 0:00:30]} 20. Qc2 {[%clk 0:00:41]}  g6 {[%clk 0:00:26]} 21. Rh1 {[%clk 0:00:33]}  Ne4 {[%clk 0:00:22]} 22. Nxe4 {[%clk 0:00:31]}  dxe4 {[%clk 0:00:23]} 23. Qxe4 {[%clk 0:00:30]}  Qd7 {[%clk 0:00:17]} 24. f5 {[%clk 0:00:27]}  exf5 {[%clk 0:00:14]} 25. gxf5 {[%clk 0:00:21]}  Qxf5 {[%clk 0:00:14]} 26. Qxf5 {[%clk 0:00:20]}  gxf5 {[%clk 0:00:15]} 27. O-O-O {[%clk 0:00:20]}  Bf6 {[%clk 0:00:14]} 28. Rdg1+ {[%clk 0:00:19]}  Kf8 {[%clk 0:00:15]} 29. Rh6 {[%clk 0:00:09]}  Bxd4 {[%clk 0:00:11]} 30. Bxd4 {[%clk 0:00:09]}  Nxd4 {[%clk 0:00:11]} 31. Bc4 {[%clk 0:00:07]}  Rac8 {[%clk 0:00:10]} 32. b3 {[%clk 0:00:06]}  b5 {[%clk 0:00:09]} 33. Rh8+ {[%clk 0:00:06]}  Ke7 {[%clk 0:00:09]} 34. Rxd8 {[%clk 0:00:07]}  Rxd8 {[%clk 0:00:08]} 35. Bf1 {[%clk 0:00:02]}  Kf6 {[%clk 0:00:07]} 36. Rg2 {[%clk 0:00:02]}  f4 {[%clk 0:00:08]} 0-1


[Site "https://www.chess.com"]

[Event "Early Titled Tuesday Blitz | February 8 2022"]
[White "Gontcharov, Vladislav"]
[Black "Howell, David W L"]
[WhiteFideId "4123492"]
[BlackFideId "410608"]
[WhiteElo "2503"]
[BlackElo "2559"]
[Result "0-1"]
[Round "01"]
[TimeControl "180+1"]
[Date "2022.02.08"]
[WhiteClock "0:00:01"]
[BlackClock "0:01:23"]

1. e4 {[%clk 0:02:59]}  c5 {[%clk 0:02:49]} 2. Nf3 {[%clk 0:02:52]}  Nc6 {[%clk 0:02:49]} 3. d4 {[%clk 0:02:52]}  cxd4 {[%clk 0:02:49]} 4. Nxd4 {[%clk 0:02:53]}  Nf6 {[%clk 0:02:48]} 5. Nc3 {[%clk 0:02:52]}  d6 {[%clk 0:02:48]} 6. Be2 {[%clk 0:02:39]}  g6 {[%clk 0:02:42]} 7. Be3 {[%clk 0:02:25]}  Bg7 {[%clk 0:02:42]} 8. O-O {[%clk 0:02:25]}  O-O {[%clk 0:02:41]} 9. Qd2 {[%clk 0:02:19]}  Bd7 {[%clk 0:02:41]} 10. Rad1 {[%clk 0:02:18]}  Rc8 {[%clk 0:02:40]} 11. Nxc6 {[%clk 0:02:09]}  Bxc6 {[%clk 0:02:35]} 12. f3 {[%clk 0:02:09]}  Qa5 {[%clk 0:02:35]} 13. Nd5 {[%clk 0:01:43]}  Qd8 {[%clk 0:02:35]} 14. c4 {[%clk 0:01:32]}  Bxd5 {[%clk 0:02:32]} 15. exd5 {[%clk 0:01:17]}  Nd7 {[%clk 0:02:33]} 16. b4 {[%clk 0:01:14]}  Qc7 {[%clk 0:02:24]} 17. Rc1 {[%clk 0:01:12]}  a5 {[%clk 0:02:22]} 18. a3 {[%clk 0:01:09]}  axb4 {[%clk 0:02:19]} 19. axb4 {[%clk 0:01:08]}  b6 {[%clk 0:02:20]} 20. f4 {[%clk 0:01:03]}  Ra8 {[%clk 0:02:19]} 21. Bf3 {[%clk 0:00:46]}  Ra4 {[%clk 0:02:15]} 22. Rfe1 {[%clk 0:00:45]}  Rfa8 {[%clk 0:02:13]} 23. Bf2 {[%clk 0:00:45]}  Ra2 {[%clk 0:02:01]} 24. Qe3 {[%clk 0:00:30]}  Bf6 {[%clk 0:02:00]} 25. g4 {[%clk 0:00:18]}  R8a3 {[%clk 0:01:58]} 26. Qe4 {[%clk 0:00:18]}  g5 {[%clk 0:01:39]} 27. Bg3 {[%clk 0:00:04]}  h6 {[%clk 0:01:32]} 28. Bg2 {[%clk 0:00:01]}  Nf8 {[%clk 0:01:23]} 0-1


[Site "https://www.chess.com"]

[Event "Early Titled Tuesday Blitz | February 8 2022"]
[White "Goryachkina, Aleksandra"]
[Black "Goldin, Roman"]
[WhiteFideId "4147103"]
[BlackFideId "2803860"]
[WhiteElo "2426"]
[BlackElo "2312"]
[Result "1-0"]
[Round "01"]
[TimeControl "180+1"]
[Date "2022.02.08"]
[WhiteClock "0:00:25"]
[BlackClock "0:00:18"]

1. e4 {[%clk 0:02:58]}  Nc6 {[%clk 0:02:57]} 2. Nc3 {[%clk 0:02:52]}  Nf6 {[%clk 0:02:54]} 3. Nf3 {[%clk 0:02:36]}  e5 {[%clk 0:02:49]} 4. d4 {[%clk 0:02:35]}  exd4 {[%clk 0:02:49]} 5. Nxd4 {[%clk 0:02:35]}  g6 {[%clk 0:02:45]} 6. Be3 {[%clk 0:02:22]}  Bg7 {[%clk 0:02:44]} 7. Be2 {[%clk 0:02:13]}  O-O {[%clk 0:02:44]} 8. O-O {[%clk 0:02:12]}  Re8 {[%clk 0:02:44]} 9. f3 {[%clk 0:01:49]}  d5 {[%clk 0:02:43]} 10. Nxc6 {[%clk 0:01:43]}  bxc6 {[%clk 0:02:42]} 11. Bg5 {[%clk 0:01:37]}  Qd6 {[%clk 0:02:28]} 12. exd5 {[%clk 0:01:14]}  cxd5 {[%clk 0:02:00]} 13. Kh1 {[%clk 0:01:12]}  c6 {[%clk 0:01:59]} 14. Bd3 {[%clk 0:01:09]}  Be6 {[%clk 0:01:47]} 15. Qd2 {[%clk 0:01:08]}  Nd7 {[%clk 0:01:46]} 16. Rae1 {[%clk 0:01:05]}  Qb4 {[%clk 0:01:38]} 17. Qc1 {[%clk 0:00:46]}  Nc5 {[%clk 0:01:30]} 18. a3 {[%clk 0:00:43]}  Qa5 {[%clk 0:01:20]} 19. b4 {[%clk 0:00:34]}  Qc7 {[%clk 0:01:10]} 20. Nd1 {[%clk 0:00:34]}  Na4 {[%clk 0:00:55]} 21. Ne3 {[%clk 0:00:32]}  Nc3 {[%clk 0:00:51]} 22. f4 {[%clk 0:00:30]}  Ne4 {[%clk 0:00:47]} 23. Bxe4 {[%clk 0:00:29]}  dxe4 {[%clk 0:00:46]} 24. f5 {[%clk 0:00:30]}  Bd5 {[%clk 0:00:42]} 25. c4 {[%clk 0:00:25]}  h6 {[%clk 0:00:19]} 26. Bf4 {[%clk 0:00:25]}  Be5 {[%clk 0:00:19]} 27. Bxe5 {[%clk 0:00:25]}  Qxe5 {[%clk 0:00:19]} 28. cxd5 {[%clk 0:00:25]}  cxd5 {[%clk 0:00:20]} 29. Ng4 {[%clk 0:00:26]}  Qg7 {[%clk 0:00:18]} 30. fxg6 {[%clk 0:00:25]}  fxg6 {[%clk 0:00:18]} 31. Nf6+ {[%clk 0:00:25]} 1-0


[Site "https://www.chess.com"]

[Event "Early Titled Tuesday Blitz | February 8 2022"]
[White "Guliyev, Namig"]
[Black "Toncheva, Nadya"]
[WhiteFideId "13400363"]
[BlackFideId "2924056"]
[WhiteElo "2487"]
[BlackElo "1920"]
[Result "1-0"]
[Round "01"]
[TimeControl "180+1"]
[Date "2022.02.08"]
[WhiteClock "0:02:24"]
[BlackClock "0:00:46"]

1. e4 {[%clk 0:03:00]}  c5 {[%clk 0:02:58]} 2. Nf3 {[%clk 0:03:00]}  Nc6 {[%clk 0:02:58]} 3. d4 {[%clk 0:03:00]}  cxd4 {[%clk 0:02:59]} 4. Nxd4 {[%clk 0:03:01]}  g6 {[%clk 0:03:00]} 5. Nc3 {[%clk 0:03:01]}  Bg7 {[%clk 0:03:00]} 6. Be3 {[%clk 0:03:01]}  Nf6 {[%clk 0:03:00]} 7. Nxc6 {[%clk 0:03:02]}  bxc6 {[%clk 0:02:59]} 8. e5 {[%clk 0:03:03]}  Ng8 {[%clk 0:03:00]} 9. Bd4 {[%clk 0:03:01]}  f6 {[%clk 0:02:59]} 10. exf6 {[%clk 0:03:02]}  Nxf6 {[%clk 0:02:59]} 11. Bc4 {[%clk 0:03:02]}  d5 {[%clk 0:02:58]} 12. Bb3 {[%clk 0:03:02]}  O-O {[%clk 0:02:55]} 13. O-O {[%clk 0:03:02]}  Bf5 {[%clk 0:02:48]} 14. Re1 {[%clk 0:02:59]}  Re8 {[%clk 0:02:45]} 15. Na4 {[%clk 0:02:56]}  Qc7 {[%clk 0:02:41]} 16. Be5 {[%clk 0:02:56]}  Qa5 {[%clk 0:02:38]} 17. Qd4 {[%clk 0:02:55]}  Rac8 {[%clk 0:02:26]} 18. Nc5 {[%clk 0:02:51]}  Bf8 {[%clk 0:01:46]} 19. c4 {[%clk 0:02:43]}  Red8 {[%clk 0:01:34]} 20. Rac1 {[%clk 0:02:38]}  Bh6 {[%clk 0:01:18]} 21. Rc3 {[%clk 0:02:33]}  Bd2 {[%clk 0:01:12]} 22. Qxd2 {[%clk 0:02:27]}  Qxc5 {[%clk 0:01:12]} 23. cxd5 {[%clk 0:02:27]}  Qb6 {[%clk 0:01:00]} 24. d6+ {[%clk 0:02:27]}  Kh8 {[%clk 0:00:46]} 25. dxe7 {[%clk 0:02:24]} 1-0


[Site "https://www.chess.com"]

[Event "Early Titled Tuesday Blitz | February 8 2022"]
[White "Gupta, Abhijeet"]
[Black "Guliev, Logman"]
[WhiteFideId "5010608"]
[BlackFideId "13400061"]
[WhiteElo "2549"]
[BlackElo "2128"]
[Result "1-0"]
[Round "01"]
[TimeControl "180+1"]
[Date "2022.02.08"]
[WhiteClock "0:01:21"]
[BlackClock "0:00:29"]

1. Nf3 {[%clk 0:02:55]}  Nf6 {[%clk 0:02:58]} 2. c4 {[%clk 0:02:55]}  e6 {[%clk 0:02:58]} 3. g3 {[%clk 0:02:55]}  d5 {[%clk 0:02:59]} 4. Bg2 {[%clk 0:02:53]}  Be7 {[%clk 0:02:59]} 5. O-O {[%clk 0:02:53]}  O-O {[%clk 0:03:00]} 6. d4 {[%clk 0:02:52]}  c5 {[%clk 0:02:59]} 7. dxc5 {[%clk 0:02:51]}  Bxc5 {[%clk 0:02:58]} 8. cxd5 {[%clk 0:02:51]}  exd5 {[%clk 0:02:57]} 9. b3 {[%clk 0:02:49]}  Nc6 {[%clk 0:02:53]} 10. Bb2 {[%clk 0:02:49]}  d4 {[%clk 0:02:52]} 11. Nbd2 {[%clk 0:02:47]}  Bg4 {[%clk 0:02:47]} 12. Rc1 {[%clk 0:02:47]}  Bb6 {[%clk 0:02:46]} 13. h3 {[%clk 0:02:35]}  Bh5 {[%clk 0:02:45]} 14. a3 {[%clk 0:02:30]}  Re8 {[%clk 0:02:34]} 15. b4 {[%clk 0:02:28]}  a6 {[%clk 0:02:18]} 16. Nb3 {[%clk 0:02:14]}  Qd7 {[%clk 0:02:02]} 17. g4 {[%clk 0:02:10]}  Bg6 {[%clk 0:02:02]} 18. Nbxd4 {[%clk 0:02:00]}  Nxd4 {[%clk 0:01:59]} 19. Bxd4 {[%clk 0:01:59]}  Bxd4 {[%clk 0:01:57]} 20. Qxd4 {[%clk 0:01:59]}  Rxe2 {[%clk 0:01:53]} 21. Qxd7 {[%clk 0:01:49]}  Nxd7 {[%clk 0:01:52]} 22. Rc7 {[%clk 0:01:48]}  Nb6 {[%clk 0:01:50]} 23. Rxb7 {[%clk 0:01:43]}  Nc4 {[%clk 0:01:43]} 24. Rc7 {[%clk 0:01:43]}  Bd3 {[%clk 0:01:14]} 25. Ne1 {[%clk 0:01:28]}  Rxe1 {[%clk 0:00:43]} 26. Rxe1 {[%clk 0:01:29]}  Rf8 {[%clk 0:00:39]} 27. Bd5 {[%clk 0:01:23]}  Nd6 {[%clk 0:00:29]} 28. Rd7 {[%clk 0:01:21]} 1-0


[Site "https://www.chess.com"]

[Event "Early Titled Tuesday Blitz | February 8 2022"]
[White "Guseva, Marina"]
[Black "Boros, Denes"]
[WhiteFideId "4149351"]
[BlackFideId "722340"]
[WhiteElo "2232"]
[BlackElo "2464"]
[Result "0-1"]
[Round "01"]
[TimeControl "180+1"]
[Date "2022.02.08"]
[WhiteClock "0:00:01"]
[BlackClock "0:00:16"]

1. d4 {[%clk 0:02:58]}  g6 {[%clk 0:03:00]} 2. c4 {[%clk 0:02:54]}  Nf6 {[%clk 0:03:00]} 3. Nf3 {[%clk 0:02:52]}  d5 {[%clk 0:02:57]} 4. cxd5 {[%clk 0:02:47]}  Nxd5 {[%clk 0:02:58]} 5. g3 {[%clk 0:02:47]}  Bg7 {[%clk 0:02:56]} 6. Bg2 {[%clk 0:02:46]}  Nb6 {[%clk 0:02:57]} 7. O-O {[%clk 0:02:45]}  Nc6 {[%clk 0:02:57]} 8. Nc3 {[%clk 0:02:42]}  O-O {[%clk 0:02:55]} 9. d5 {[%clk 0:02:41]}  Nb4 {[%clk 0:02:56]} 10. e4 {[%clk 0:02:38]}  e6 {[%clk 0:02:56]} 11. a3 {[%clk 0:02:35]}  Na6 {[%clk 0:02:56]} 12. Bg5 {[%clk 0:02:31]}  f6 {[%clk 0:02:54]} 13. Bf4 {[%clk 0:02:27]}  g5 {[%clk 0:02:47]} 14. Bc1 {[%clk 0:02:24]}  e5 {[%clk 0:02:39]} 15. Qe2 {[%clk 0:02:06]}  Bg4 {[%clk 0:02:28]} 16. h3 {[%clk 0:02:06]}  Bh5 {[%clk 0:02:26]} 17. g4 {[%clk 0:02:05]}  Bf7 {[%clk 0:02:26]} 18. Be3 {[%clk 0:02:04]}  Nc8 {[%clk 0:02:18]} 19. Rfd1 {[%clk 0:02:02]}  h5 {[%clk 0:02:14]} 20. Nd2 {[%clk 0:01:57]}  Qd7 {[%clk 0:02:11]} 21. gxh5 {[%clk 0:01:40]}  Qe8 {[%clk 0:01:59]} 22. Bf3 {[%clk 0:01:39]}  Nd6 {[%clk 0:01:58]} 23. Nf1 {[%clk 0:01:39]}  f5 {[%clk 0:01:58]} 24. exf5 {[%clk 0:01:38]}  e4 {[%clk 0:01:58]} 25. Bg4 {[%clk 0:01:37]}  Qe5 {[%clk 0:01:50]} 26. Ng3 {[%clk 0:01:27]}  Rae8 {[%clk 0:01:41]} 27. Bxg5 {[%clk 0:01:22]}  Nc5 {[%clk 0:01:38]} 28. f4 {[%clk 0:00:48]}  exf3 {[%clk 0:01:32]} 29. Qxf3 {[%clk 0:00:47]}  Nb3 {[%clk 0:01:25]} 30. Rab1 {[%clk 0:00:42]}  Nd4 {[%clk 0:01:21]} 31. Qg2 {[%clk 0:00:40]}  Kh8 {[%clk 0:01:06]} 32. h6 {[%clk 0:00:39]}  Bf6 {[%clk 0:01:06]} 33. Bxf6+ {[%clk 0:00:38]}  Qxf6 {[%clk 0:01:06]} 34. Rf1 {[%clk 0:00:34]}  Nc4 {[%clk 0:01:03]} 35. Qf2 {[%clk 0:00:32]}  Re3 {[%clk 0:00:55]} 36. Rfe1 {[%clk 0:00:25]}  Qxh6 {[%clk 0:00:43]} 37. Rxe3 {[%clk 0:00:24]}  Qxe3 {[%clk 0:00:44]} 38. Qxe3 {[%clk 0:00:23]}  Nxe3 {[%clk 0:00:45]} 39. Kf2 {[%clk 0:00:21]}  Nexf5 {[%clk 0:00:38]} 40. Nxf5 {[%clk 0:00:20]}  Bg6 {[%clk 0:00:36]} 41. Re1 {[%clk 0:00:18]}  Nxf5 {[%clk 0:00:36]} 42. Bxf5 {[%clk 0:00:18]}  Bxf5 {[%clk 0:00:34]} 43. Kg3 {[%clk 0:00:18]}  Rf7 {[%clk 0:00:33]} 44. Rf1 {[%clk 0:00:18]}  Rg7+ {[%clk 0:00:33]} 45. Kf4 {[%clk 0:00:16]}  Bd3 {[%clk 0:00:27]} 46. Re1 {[%clk 0:00:13]}  Rf7+ {[%clk 0:00:24]} 47. Ke3 {[%clk 0:00:13]}  Bf5 {[%clk 0:00:22]} 48. Kd4 {[%clk 0:00:13]}  Kg7 {[%clk 0:00:20]} 49. Nb5 {[%clk 0:00:13]}  a6 {[%clk 0:00:20]} 50. Nc3 {[%clk 0:00:12]}  Bxh3 {[%clk 0:00:20]} 51. Kc5 {[%clk 0:00:11]}  Kf8 {[%clk 0:00:19]} 52. Re3 {[%clk 0:00:09]}  Bd7 {[%clk 0:00:18]} 53. b4 {[%clk 0:00:08]}  Rf4 {[%clk 0:00:18]} 54. Re4 {[%clk 0:00:08]}  Rf3 {[%clk 0:00:18]} 55. Kd4 {[%clk 0:00:07]}  Rg3 {[%clk 0:00:17]} 56. Re5 {[%clk 0:00:06]}  Rg4+ {[%clk 0:00:17]} 57. Ne4 {[%clk 0:00:06]}  Kf7 {[%clk 0:00:17]} 58. d6 {[%clk 0:00:04]}  cxd6 {[%clk 0:00:16]} 59. Rd5 {[%clk 0:00:02]}  Bc6 {[%clk 0:00:17]} 60. Rf5+ {[%clk 0:00:01]}  Ke7 {[%clk 0:00:16]} 0-1


[Site "https://www.chess.com"]

[Event "Early Titled Tuesday Blitz | February 8 2022"]
[White "Hakobyan, Aram"]
[Black "Weishaeutel, Moritz"]
[WhiteFideId "13306677"]
[BlackFideId "12967300"]
[WhiteElo "2557"]
[BlackElo "2002"]
[Result "1-0"]
[Round "01"]
[TimeControl "180+1"]
[Date "2022.02.08"]
[WhiteClock "0:00:34"]
[BlackClock "0:00:02"]

1. b3 {[%clk 0:03:00]}  d5 {[%clk 0:02:57]} 2. Bb2 {[%clk 0:03:01]}  Bf5 {[%clk 0:02:57]} 3. d3 {[%clk 0:03:01]}  Nf6 {[%clk 0:02:57]} 4. Nd2 {[%clk 0:03:02]}  e6 {[%clk 0:02:57]} 5. g3 {[%clk 0:03:02]}  Be7 {[%clk 0:02:57]} 6. Bg2 {[%clk 0:03:03]}  O-O {[%clk 0:02:58]} 7. e4 {[%clk 0:03:01]}  Bg6 {[%clk 0:02:52]} 8. Nh3 {[%clk 0:03:00]}  Bh5 {[%clk 0:02:48]} 9. Qc1 {[%clk 0:02:57]}  d4 {[%clk 0:02:21]} 10. Nf4 {[%clk 0:02:54]}  Bg6 {[%clk 0:02:21]} 11. e5 {[%clk 0:02:41]}  Nd5 {[%clk 0:02:20]} 12. Nxd5 {[%clk 0:02:38]}  exd5 {[%clk 0:02:19]} 13. Bxd4 {[%clk 0:02:38]}  c5 {[%clk 0:02:19]} 14. Bb2 {[%clk 0:02:37]}  Nc6 {[%clk 0:02:20]} 15. O-O {[%clk 0:02:36]}  d4 {[%clk 0:02:18]} 16. f4 {[%clk 0:02:31]}  Bf5 {[%clk 0:02:12]} 17. Nc4 {[%clk 0:02:20]}  f6 {[%clk 0:02:07]} 18. Qd2 {[%clk 0:02:16]}  fxe5 {[%clk 0:02:04]} 19. Bxc6 {[%clk 0:02:09]}  bxc6 {[%clk 0:02:02]} 20. Nxe5 {[%clk 0:02:09]}  Bf6 {[%clk 0:01:46]} 21. Ba3 {[%clk 0:02:08]}  Qd5 {[%clk 0:01:13]} 22. Rae1 {[%clk 0:02:00]}  Bh3 {[%clk 0:01:10]} 23. Rf2 {[%clk 0:01:57]}  Rae8 {[%clk 0:01:07]} 24. Nf3 {[%clk 0:01:40]}  Bg4 {[%clk 0:00:43]} 25. Ne5 {[%clk 0:01:15]}  Bxe5 {[%clk 0:00:37]} 26. fxe5 {[%clk 0:01:13]}  Rxf2 {[%clk 0:00:38]} 27. Qxf2 {[%clk 0:00:37]}  Rxe5 {[%clk 0:00:39]} 28. Rxe5 {[%clk 0:00:38]}  Qxe5 {[%clk 0:00:39]} 29. Bc1 {[%clk 0:00:38]}  Qe2 {[%clk 0:00:37]} 30. Qxe2 {[%clk 0:00:39]}  Bxe2 {[%clk 0:00:37]} 31. Kf2 {[%clk 0:00:39]}  Bd1 {[%clk 0:00:37]} 32. Ke1 {[%clk 0:00:40]}  Bxc2 {[%clk 0:00:37]} 33. Kd2 {[%clk 0:00:41]}  Bb1 {[%clk 0:00:38]} 34. a4 {[%clk 0:00:41]}  Kf7 {[%clk 0:00:34]} 35. Ba3 {[%clk 0:00:41]}  Ke6 {[%clk 0:00:06]} 36. Bxc5 {[%clk 0:00:41]}  Kd5 {[%clk 0:00:07]} 37. Bxa7 {[%clk 0:00:41]}  c5 {[%clk 0:00:07]} 38. Bb8 {[%clk 0:00:36]}  g6 {[%clk 0:00:05]} 39. Bf4 {[%clk 0:00:32]}  Kc6 {[%clk 0:00:05]} 40. Bh6 {[%clk 0:00:32]}  Kd5 {[%clk 0:00:05]} 41. Bf8 {[%clk 0:00:32]}  Kc6 {[%clk 0:00:06]} 42. h4 {[%clk 0:00:33]}  Kd5 {[%clk 0:00:06]} 43. g4 {[%clk 0:00:33]}  Kc6 {[%clk 0:00:06]} 44. g5 {[%clk 0:00:34]}  Kd5 {[%clk 0:00:06]} 45. a5 {[%clk 0:00:34]}  Kc6 {[%clk 0:00:06]} 46. a6 {[%clk 0:00:35]}  Kb6 {[%clk 0:00:04]} 47. Bxc5+ {[%clk 0:00:35]}  Kxa6 {[%clk 0:00:05]} 48. Bxd4 {[%clk 0:00:36]}  Kb5 {[%clk 0:00:05]} 49. Kc3 {[%clk 0:00:35]}  Kc6 {[%clk 0:00:04]} 50. Kc4 {[%clk 0:00:31]}  Bc2 {[%clk 0:00:04]} 51. b4 {[%clk 0:00:29]}  Ba4 {[%clk 0:00:05]} 52. Bc5 {[%clk 0:00:29]}  Bb5+ {[%clk 0:00:05]} 53. Kd4 {[%clk 0:00:30]}  Ba6 {[%clk 0:00:05]} 54. Ke4 {[%clk 0:00:30]}  Bb5 {[%clk 0:00:05]} 55. d4 {[%clk 0:00:30]}  Bc4 {[%clk 0:00:06]} 56. Ke5 {[%clk 0:00:30]}  Bd5 {[%clk 0:00:04]} 57. Kf6 {[%clk 0:00:31]}  Be4 {[%clk 0:00:02]} 58. Kg7 {[%clk 0:00:31]}  Bf5 {[%clk 0:00:02]} 59. Kxh7 {[%clk 0:00:32]}  Be4 {[%clk 0:00:02]} 60. Kh6 {[%clk 0:00:33]}  Bd3 {[%clk 0:00:02]} 61. h5 {[%clk 0:00:33]}  gxh5 {[%clk 0:00:02]} 62. Kxh5 {[%clk 0:00:34]} 1-0


[Site "https://www.chess.com"]